bitfinex-derivatives/quotes_ETHF0:USTF0_20241228
["timestamp","ask_amount","ask_price","bid_price","bid_amount"]
[1735429734368,2.30446923,3403.8,3403.7,0.29434]
[1735429734668,2.30446923,3403.8,3403.7,0.73464]
[1735429735362,2.30446923,3404.0,3403.7,5.06782027]
[1735429735665,2.30446923,3404.0,3403.9,3.50212]
[1735429739169,2.30446923,3404.2,3403.9,3.2078]
[1735429739370,2.30446923,3404.2,3404.1,0.2943]
[1735429740668,6.68826923,3404.5,3404.1,4.62752027]
[1735429740965,6.68826923,3404.5,3404.4,0.29428]
[1735429741171,3.48046923,3404.5,3404.4,0.29428]
[1735429742264,1.176,3404.5,3404.4,0.29428]
[1735429743665,7.57069859,3404.7,3404.6,0.29426]
[1735429743666,7.59436923,3404.7,3404.6,0.29426]
[1735429744672,7.59436923,3404.7,3404.6,3.50206]
[1735429744673,3.21056923,3404.7,3404.6,3.50206]
[1735429744965,0.9061,3404.7,3404.6,3.50206]
[1735429746969,0.9061,3404.7,3404.6,0.29426]
[1735429750475,0.9061,3404.7,3404.6,3.50206]
[1735429751073,0.4572,3404.7,3404.6,3.50206]
[1735429757280,0.4642,3405.0,3404.6,3.50206]
[1735429757475,0.4642,3405.0,3404.9,0.29423]
[1735429758677,1.93442,3405.0,3404.9,0.29423]
[1735429759574,1.6402,3405.0,3404.9,0.29423]
[1735429759771,0.4642,3405.0,3404.9,0.29423]
[1735429759976,0.4497,3405.1,3405.0,0.29422]
[1735429760571,0.4497,3405.1,3405.0,0.73002]
[1735429761774,3.2078,3405.2,3405.1,0.29422]
[1735429764182,3.50201,3405.2,3405.1,0.29422]
[1735429764876,3.95001,3405.2,3405.1,0.29422]
[1735429766082,3.95001,3405.2,3404.6,8.28982027]
[1735429766083,0.29423,3405.0,3404.9,0.29422]
[1735429766876,0.29422,3405.1,3405.0,0.29422]
[1735429767084,3.95001,3405.2,3405.1,0.29422]
[1735429767782,3.2078,3405.2,3405.1,0.29422]
[1735429768788,3.50201,3405.2,3405.1,0.29422]
[1735429768991,3.2078,3405.2,3405.1,0.29422]
[1735429770587,0.4652,3405.5,3405.4,0.29419]
[1735429770789,1.6402,3405.5,3405.4,0.29419]
[1735429772393,1.175,3405.5,3405.4,0.29419]
[1735429773388,0.422,3405.9,3405.8,0.29415]
[1735429773589,1.597,3405.9,3405.8,0.29415]
[1735429774285,0.29413,3406.1,3405.5,0.73544]
[1735429774493,1.175,3406.0,3405.3,0.4611]
[1735429774696,1.175,3406.0,3405.9,0.29415]
[1735429777389,5.51226923,3406.2,3406.1,0.29413]
[1735429777585,4.3828,3406.2,3406.1,0.29413]
[1735429780594,3.2078,3406.2,3406.1,0.29413]
[1735429781395,3.6549,3406.2,3406.1,0.29413]
[1735429781893,4.098,3406.2,3406.1,0.29413]
[1735429782197,9.65946923,3406.5,3406.4,0.2941]
[1735429782397,10.83446923,3406.5,3406.4,0.2941]
[1735429783394,8.53,3406.5,3406.4,0.2941]
[1735429783689,9.27119,3406.5,3406.4,0.2941]
[1735429783899,8.9771,3406.5,3406.4,0.2941]
[1735429784203,9.27119,3406.5,3406.4,0.2941]
[1735429785100,0.29412,3406.3,3406.2,0.29411]
[1735429786194,0.29411,3406.4,3406.3,0.2941]
[1735429786400,1.46911,3406.4,3406.3,0.2941]
[1735429787903,4.3828,3406.4,3405.6,3.2078]
[1735429788209,5.56953895,3406.0,3405.4,4.62752027]
[1735429788398,0.29418,3405.6,3405.5,0.29417]
[1735429788704,4.67698,3405.6,3405.5,0.29417]
[1735429790405,4.67698,3405.6,3405.1,0.73553]
[1735429790406,6.68726923,3405.6,3405.1,0.73553]
[1735429790701,0.2942,3405.4,3405.3,0.29419]
[1735429792509,0.7553,3405.4,3405.3,0.29419]
[1735429796111,0.29421,3405.3,3405.2,0.2942]
[1735429796307,1.18041,3405.3,3405.2,0.2942]
[1735429801302,0.4524,3405.3,3405.2,0.2942]
[1735429801814,2.30446923,3405.4,3405.3,0.2942]
[1735429802217,3.45679859,3405.5,3405.1,3.2078]
[1735429802218,2.30446923,3405.5,3405.1,4.1019]
[1735429802408,2.30446923,3405.5,3405.4,0.29419]
[1735429803410,2.59864923,3405.5,3405.4,0.29419]
[1735429803613,0.29418,3405.5,3405.4,0.29419]
[1735429805416,6.68726923,3405.6,3405.5,0.29418]
[1735429805614,2.30446923,3405.6,3405.5,0.29418]
[1735429805813,2.30446923,3405.6,3405.5,3.50198]
[1735429806313,2.30446923,3405.6,3405.5,3.93648]
[1735429807512,0.29414,3406.0,3405.5,3.6423]
[1735429807715,0.29414,3406.0,3405.9,0.29415]
[1735429809719,1.46914,3406.0,3405.9,0.29415]
[1735429810910,1.175,3406.0,3405.9,0.29415]
[1735429835337,2.30446923,3406.2,3406.1,0.29413]
[1735429836946,2.74596923,3406.3,3406.0,0.8862]
[1735429837348,2.74596923,3406.3,3406.1,0.29412]
[1735429837349,0.29413,3406.2,3406.1,0.29412]
[1735429839745,3.75092859,3406.2,3406.1,0.29412]
[1735429839945,0.29415,3405.9,3405.6,3.2078]
[1735429840140,0.29417,3405.7,3405.6,0.29417]
[1735429841243,3.75096859,3405.7,3405.6,0.29417]
[1735429844850,4.92496859,3405.7,3405.6,0.29417]
[1735429845052,1.46817,3405.7,3405.6,0.29417]
[1735429851360,1.46817,3405.7,3405.3,5.79441027]
[1735429851361,0.29419,3405.5,3405.4,0.29418]
[1735429852061,3.75778005,3405.5,3405.4,0.29418]
[1735429853863,0.29419,3405.5,3405.4,0.29418]
[1735429855969,3.7550875,3405.5,3405.4,0.29418]
[1735429857260,0.29419,3405.5,3405.4,0.29418]
[1735429860069,2.60222118,3405.5,3405.4,0.29418]
[1735429860667,2.30803118,3405.5,3405.4,0.29418]
[1735429861862,2.60221118,3405.5,3405.4,0.29418]
[1735429862670,2.30803118,3405.5,3405.4,0.29418]
[1735429864367,2.30803118,3405.6,3405.5,0.29418]
[1735429864566,2.30803118,3405.6,3405.5,1.33140363]
[1735429865659,3.4608975,3405.7,3405.6,0.29417]
[1735429865869,3.4608975,3405.7,3405.6,0.73247]
[1735429866066,3.4608975,3405.7,3405.6,1.16727]
[1735429868369,5.3644575,3405.8,3405.7,0.29416]
[1735429868571,3.8962975,3405.8,3405.7,0.29416]
[1735429868870,3.4608975,3405.8,3405.7,0.29416]
[1735429869075,1.62889395,3405.8,3405.7,0.29416]
[1735429869765,2.31047183,3406.3,3405.7,5.33449085]
[1735429869970,2.31047183,3406.3,3406.2,1.33134363]
[1735429871267,2.31047183,3406.5,3406.4,0.2941]
[1735429873073,2.31047183,3406.5,3406.1,4.62154521]
[1735429873268,0.29412,3406.3,3406.2,0.29411]
[1735429873773,3.50192,3406.3,3406.2,0.29411]
[1735429874170,3.2078,3406.3,3405.9,4.62154521]
[1735429874466,0.29414,3406.0,3405.9,4.62154521]
[1735429874971,0.29414,3406.0,3405.9,4.91569521]
[1735429875274,2.65229886,3406.0,3405.9,4.62154521]
[1735429876568,2.65229886,3406.0,3405.4,0.73547]
[1735429876776,2.65229886,3406.0,3405.9,0.29415]
[1735429876969,5.86009886,3406.0,3405.9,0.29415]
[1735429878070,5.56595886,3406.0,3405.4,0.73547]
[1735429878270,0.29416,3405.8,3405.7,0.29416]
[1735429878471,1.46816,3405.8,3405.7,0.29416]
[1735429880200,4.67596,3405.8,3405.7,0.29416]
[1735429882899,0.29418,3405.7,3405.6,0.29417]
[1735429883196,0.74458,3405.7,3405.6,0.29417]
[1735429883596,1.91858,3405.7,3405.6,0.29417]
[1735429884486,0.74458,3405.7,3405.6,0.29417]
[1735429884680,1.91858,3405.7,3405.6,0.29417]
[1735429891778,2.35938,3405.7,3405.6,0.29417]
[1735429893982,0.29419,3405.5,3405.4,0.29417]
[1735429896284,2.59841042,3405.5,3405.4,0.29417]
[1735429902787,3.63562446,3405.5,3405.4,0.29417]
[1735429904797,2.30422042,3405.5,3405.4,0.29417]
[1735429906199,3.03710042,3405.6,3405.5,0.29418]
[1735429906904,3.91692042,3405.6,3405.5,0.29418]
[1735429907105,3.47822042,3405.6,3405.5,0.29418]
[1735429910205,2.30422042,3405.6,3405.5,0.29418]
[1735429912708,2.30422042,3405.6,3405.5,1.33139404]
[1735429912899,2.30422042,3405.6,3405.5,2.21609404]
[1735429913211,1.60432042,3405.6,3405.5,7.21609404]
[1735429913508,4.61243983,3406.0,3405.9,0.29415]
[1735429913707,4.61243983,3406.0,3405.9,4.53916404]
[1735429914711,1.639,3406.5,3405.9,8.86655925]
[1735429914908,1.639,3406.5,3406.4,0.2941]
[1735429917813,2.97030404,3406.5,3406.4,0.2941]
[1735429918411,0.29413,3406.1,3406.0,4.62154521]
[1735429918614,4.53914404,3406.1,3406.0,3.92174521]
[1735429919009,4.53914404,3406.1,3406.0,3.22204521]
[1735429919810,4.53914404,3406.1,3405.8,0.29415]
[1735429919811,0.29415,3405.9,3405.8,0.29415]
[1735429920006,1.33136404,3405.9,3405.8,0.29415]
[1735429920209,1.03721404,3405.9,3405.3,0.73548]
[1735429920410,3.94487,3405.8,3405.7,0.29415]
[1735429921108,0.29418,3405.6,3405.5,0.29417]
[1735429921702,1.174,3405.7,3405.0,10.14011782]
[1735429921703,3.53366724,3405.7,3405.0,10.14011782]
[1735429921904,3.53366724,3405.7,3405.4,0.29419]
[1735429921905,0.75039,3405.5,3405.4,0.29419]
[1735429922310,0.4562,3405.5,3405.0,10.14011782]
[1735429922511,0.29422,3405.2,3405.1,0.29421]
[1735429922811,0.29422,3405.1,3405.0,7.22653782]
[1735429923021,0.73262,3405.1,3405.0,0.29422]
[1735429924216,0.29423,3404.9,3404.8,6.93231782]
[1735429924521,0.29426,3404.7,3404.6,0.29425]
[1735429925218,0.29427,3404.6,3404.5,0.29426]
[1735429925419,0.4525,3404.6,3404.3,6.93231782]
[1735429925815,0.4525,3404.6,3404.5,0.29427]
[1735429926218,0.29428,3404.4,3404.3,0.29428]
[1735429926816,0.4525,3404.6,3404.4,0.29427]
[1735429926817,0.29427,3404.5,3404.4,0.29427]
[1735429927619,0.74676,3404.6,3404.5,0.29427]
[1735429927818,3.95456,3404.6,3404.5,0.29427]
[1735429928525,0.29427,3404.5,3404.4,0.29427]
[1735429928928,0.29428,3404.4,3404.3,0.29428]
[1735429931725,5.07923118,3404.8,3404.7,0.29425]
[1735429932318,3.45313118,3404.8,3404.7,0.29425]
[1735429933422,1.174,3405.1,3405.0,0.29422]
[1735429938719,1.174,3405.1,3404.9,0.29423]
[1735429938919,1.174,3405.1,3404.8,3.2078]
[1735429938920,1.91972,3405.1,3405.0,0.29422]
[1735429940926,1.174,3405.1,3405.0,0.29422]
[1735429943831,3.50198,3405.6,3405.5,0.29418]
[1735429944032,4.3818,3405.6,3405.5,0.29418]
[1735429945230,4.67597,3405.6,3405.5,0.29418]
[1735429945625,0.29417,3405.6,3405.5,0.29418]
[1735429948922,0.29417,3405.6,3405.1,0.73555]
[1735429949127,1.5944,3405.7,3405.0,0.8906]
[1735429949527,1.88857,3405.7,3405.6,0.29417]
[1735429950524,1.5944,3405.7,3405.1,0.73554]
[1735429950728,0.29419,3405.5,3405.4,0.29418]
[1735429953938,0.29418,3405.6,3405.5,0.29417]
[1735429958733,0.29419,3405.5,3405.4,0.29418]
[1735429959133,1.46819,3405.5,3405.4,0.29418]
[1735429960433,0.4204,3405.7,3405.0,0.8906]
[1735429960634,0.71458,3405.7,3405.6,0.29417]
[1735429961639,0.29419,3405.6,3405.5,0.29417]
[1735429961841,0.29419,3405.6,3405.5,0.76047]
[1735429962134,0.29419,3405.6,3405.5,0.29417]
[1735429966944,1.88857,3405.7,3405.6,0.29417]
[1735429970845,0.4204,3405.7,3405.6,0.29417]
[1735429971149,2.0722,3405.8,3405.7,0.29416]
[1735429973749,1.6105,3405.8,3405.7,0.29416]
[1735429975749,0.4246,3406.0,3405.7,3.2078]
[1735429975945,0.4246,3406.0,3405.9,0.29415]
[1735429976145,4.62613118,3406.1,3406.0,0.29414]
[1735429977452,3.45313118,3406.2,3406.1,0.29413]
[1735429978950,0.4539,3406.4,3406.3,0.29411]
[1735429983246,0.4539,3406.4,3406.0,0.4426]
[1735429983946,0.4539,3406.4,3406.3,0.29411]
[1735429987943,0.877,3406.6,3406.5,0.29409]
[1735429988350,3.45313118,3406.9,3406.8,0.29407]
[1735429990658,0.89,3407.0,3406.9,0.29406]
[1735429993758,1.18405,3407.0,3406.9,0.29191872]
[1735429994560,0.29408,3406.8,3406.7,0.29406]
[1735429995866,0.29409,3406.6,3406.5,0.29408]
[1735429996067,0.29408,3406.8,3406.7,0.29407]
[1735429999472,1.46708,3406.8,3406.7,0.29407]
[1735430001675,1.173,3406.8,3406.7,0.29407]
[1735430003178,0.29407,3406.9,3406.5,0.458]
[1735430003179,1.173,3406.9,3406.5,0.458]
[1735430003367,1.173,3406.9,3406.6,0.29409]
[1735430003569,1.173,3406.9,3406.8,0.29407]
[1735430006684,5.84314173,3407.0,3406.9,0.29406]
[1735430007282,2.63534173,3407.0,3406.9,0.29406]
[1735430011587,3.06814173,3407.0,3406.9,0.29406]
[1735430013084,1.89514173,3407.0,3406.9,0.29406]
[1735430015189,2.18919173,3407.0,3406.9,0.29406]
[1735430016585,5.64232291,3407.0,3406.9,0.29406]
[1735430017584,4.60588118,3407.0,3406.9,0.29406]
[1735430018484,5.77888118,3407.0,3406.9,0.29406]
[1735430020088,5.48483118,3407.0,3406.9,0.29406]
[1735430020482,5.77888118,3407.0,3406.9,0.29406]
[1735430021290,0.8587,3407.0,3406.9,0.29406]
[1735430021496,1.15275,3407.0,3406.9,0.29406]
[1735430021886,0.8587,3407.0,3406.9,0.29406]
[1735430023999,5.47113983,3407.0,3406.9,0.29406]
[1735430024393,5.76518983,3407.0,3406.9,0.29406]
[1735430024997,1.15275,3407.0,3406.9,0.29406]
[1735430025196,4.36055,3407.0,3406.9,0.29406]
[1735430026492,8.97298983,3407.0,3406.9,0.29406]
[1735430027999,5.76518983,3407.0,3406.9,0.29406]
[1735430029901,8.67893983,3407.0,3406.5,7.39031782]
[1735430030096,0.29407,3406.9,3406.8,0.29406]
[1735430031995,4.90620773,3406.9,3406.8,0.29406]
[1735430035900,0.29407,3406.9,3406.8,0.29406]
[1735430038304,4.91077067,3406.9,3406.8,0.29406]
[1735430040508,0.29407,3406.8,3406.7,4.63073804]
[1735430040701,1.33051173,3406.8,3406.7,4.63073804]
[1735430041604,1.33051173,3406.8,3406.7,4.92481804]
[1735430041800,1.33051173,3406.8,3406.7,4.63073804]
[1735430042404,5.94781253,3406.8,3406.7,4.63073804]
[1735430043509,1.03644173,3406.8,3406.6,0.29409]
[1735430043709,0.29408,3406.7,3406.6,0.29409]
[1735430045906,1.03644173,3406.8,3406.2,0.7353]
[1735430046103,0.29411,3406.5,3406.4,0.29409]
[1735430046509,1.18041,3406.5,3406.4,0.29409]
[1735430047209,5.79147287,3406.5,3406.4,0.29409]
[1735430048311,6.96347287,3406.5,3406.4,0.29409]
[1735430049404,5.80965853,3406.5,3406.4,0.29409]
[1735430049908,5.09404853,3406.5,3406.4,0.29409]
[1735430050510,3.9415885,3406.5,3406.4,0.29409]
[1735430051404,5.09404853,3406.5,3406.4,0.29409]
[1735430052211,1.6368,3406.5,3406.4,0.29409]
[1735430054405,1.93089,3406.5,3406.4,0.29409]
[1735430059010,5.38813853,3406.5,3406.4,0.29409]
[1735430060719,5.09404853,3406.5,3406.4,0.29409]
[1735430061320,4.62924853,3406.5,3406.4,0.29409]
[1735430062018,4.92333853,3406.5,3406.4,0.29409]
[1735430063920,0.29411,3406.3,3406.2,8.13265804]
[1735430064525,0.73251,3406.3,3406.2,8.13265804]
[1735430064920,3.94031,3406.3,3406.2,4.92485804]
[1735430065522,3.94031,3406.3,3406.2,4.63073804]
[1735430065826,3.94031,3406.3,3406.2,3.21073804]
[1735430066323,0.29415,3405.9,3405.8,3.21073804]
[1735430066523,3.50195,3405.9,3405.8,3.21073804]
[1735430066824,3.50195,3405.9,3405.8,3.50488804]
[1735430067125,3.92775,3405.9,3405.8,3.50488804]
[1735430067525,7.38672292,3405.9,3405.8,0.29415]
[1735430068422,4.17892292,3405.9,3405.8,0.29415]
[1735430070228,0.71995,3405.9,3405.8,0.29415]
[1735430070523,3.45897292,3406.0,3405.9,0.29415]
[1735430070721,4.92511292,3406.0,3405.9,0.29415]
[1735430071118,1.46614,3406.0,3405.9,0.29415]
[1735430072625,1.172,3406.0,3405.9,0.29415]
[1735430073017,1.46614,3406.0,3405.9,0.29415]
[1735430073527,3.77024669,3406.0,3405.9,0.29415]
[1735430074826,3.47610669,3406.0,3405.9,0.29415]
[1735430075027,1.172,3406.0,3405.9,0.29415]
[1735430075331,1.46614,3406.0,3405.9,0.29415]
[1735430080030,3.77177218,3406.0,3405.9,0.29415]
[1735430081230,4.92511292,3406.0,3405.9,0.29415]
[1735430081831,4.92511292,3406.0,3405.4,3.2078]
[1735430082033,0.29417,3405.8,3405.7,0.29415]
[1735430087028,2.59993622,3405.8,3405.7,0.29415]
[1735430095042,3.34220795,3405.8,3405.3,6.93231782]
[1735430095341,0.29419,3405.4,3405.3,7.22650782]
[1735430095636,0.29419,3405.4,3405.3,6.93231782]
[1735430095844,1.60909,3405.4,3405.3,7.22651782]
[1735430097241,1.60909,3405.4,3405.3,0.2942]
[1735430097939,0.29421,3405.3,3405.2,0.2942]
[1735430098139,1.46621,3405.3,3405.2,0.2942]
[1735430098945,1.172,3405.3,3404.8,0.4221]
[1735430099244,0.29423,3405.0,3404.9,0.29423]
[1735430099943,1.33067173,3405.0,3404.9,0.29423]
[1735430100241,0.29424,3404.9,3404.8,0.29423]
[1735430100445,1.57604,3404.9,3404.8,0.29423]
[1735430100738,1.2818,3404.9,3404.6,6.93231782]
[1735430101039,1.33069173,3404.7,3404.6,6.93231782]
[1735430101231,1.33069173,3404.7,3404.3,6.93231782]
[1735430101232,0.29428,3404.4,3404.3,6.93231782]
[1735430101438,4.67408,3404.4,3404.3,6.93231782]
[1735430101950,5.09398,3404.4,3404.3,6.93231782]
[1735430103143,0.29429,3404.2,3404.1,0.2943]
[1735430105046,0.8987,3404.3,3404.2,0.29429]
[1735430105438,1.19298,3404.3,3404.2,0.29429]
[1735430105638,1.19298,3404.3,3403.9,0.4424]
[1735430105639,0.2943,3404.2,3404.1,0.29429]
[1735430106038,0.8987,3404.3,3403.9,0.4424]
[1735430106242,0.8987,3404.3,3404.2,0.29429]
[1735430106846,0.4497,3404.3,3404.2,0.29429]
[1735430107144,4.7997,3404.4,3404.3,0.29428]
[1735430109153,4.3798,3404.4,3404.3,0.29428]
[1735430110743,1.33071173,3404.5,3403.9,2.21463173]
[1735430111052,1.33071173,3404.5,3404.4,0.29428]
[1735430111752,0.29427,3404.5,3404.4,0.29428]
[1735430112946,1.33071173,3404.5,3404.4,0.29428]
[1735430114046,0.29427,3404.5,3404.4,0.29428]
[1735430114843,2.0676,3404.6,3403.9,2.21463173]
[1735430115042,2.36186,3404.6,3404.5,0.29427]
[1735430118448,2.0676,3404.6,3404.2,0.4227]
[1735430118745,1.03644173,3404.5,3404.1,3.2078]
[1735430118952,1.33072173,3404.5,3404.4,0.29427]
[1735430119740,0.29428,3404.4,3404.3,0.29428]
[1735430119947,1.78962173,3404.4,3404.3,0.29428]
[1735430122649,3.2078,3404.8,3404.1,1.03644173]
[1735430122843,2.30127995,3404.9,3404.5,1.03644173]
[1735430123045,2.30127995,3404.9,3404.8,0.29424]
[1735430123447,2.0302,3405.0,3404.6,0.4291]
[1735430123646,2.0302,3405.0,3404.9,0.29423]
[1735430123845,0.8582,3405.0,3404.9,0.29423]
[1735430124248,2.20844173,3405.1,3404.8,3.2078]
[1735430124444,2.20844173,3405.1,3405.0,0.29422]
[1735430125047,1.33066173,3405.1,3405.0,0.29422]
[1735430125248,0.8582,3405.3,3404.9,0.4388]
[1735430125249,0.4281,3405.3,3405.2,0.29421]
[1735430125450,1.6001,3405.3,3405.2,0.29421]
[1735430126156,1.172,3405.3,3405.2,0.29421]
[1735430128851,3.2078,3405.6,3405.5,0.29418]
[1735430134562,0.4543,3405.7,3405.6,0.29417]
[1735430148271,1.49147941,3405.7,3405.6,0.29417]
[1735430152866,0.4543,3405.7,3405.6,0.29417]
[1735430154371,0.8685,3405.9,3405.4,0.421]
[1735430154575,0.4338,3405.9,3405.8,0.29415]
[1735430156170,0.72795,3405.9,3405.8,0.29415]
[1735430156674,0.4338,3405.9,3405.8,0.29415]
[1735430157475,5.50907995,3406.1,3405.8,0.73539]
[1735430157675,5.50907995,3406.1,3406.0,0.29414]
[1735430158381,3.2078,3406.1,3406.0,0.29414]
[1735430163483,2.30127995,3406.6,3406.5,0.29409]
[1735430169274,5.37815233,3406.7,3406.6,0.29409]
[1735430169877,1.91917941,3406.7,3406.6,0.29409]
[1735430172884,2.21325941,3406.7,3406.6,0.29409]
[1735430175484,5.67672567,3406.7,3406.6,0.29409]
[1735430175685,5.38264567,3406.7,3406.6,0.29409]
[1735430176089,5.67672567,3406.7,3406.6,0.29409]
[1735430177085,5.38264567,3406.7,3406.6,0.29409]
[1735430186685,1.91917941,3406.7,3406.6,0.29409]
[1735430187890,5.38264567,3406.7,3406.6,0.29409]
[1735430192688,1.91917941,3406.7,3406.6,0.29409]
[1735430196699,5.38264567,3406.7,3406.6,0.29409]
[1735430198802,4.94754567,3406.7,3406.6,0.29409]
[1735430200399,1.48407941,3406.7,3406.6,0.29409]
[1735430201203,2.65507941,3406.7,3406.6,0.29409]
[1735430204205,7.26614228,3406.7,3406.6,0.29409]
[1735430206905,2.65507941,3406.7,3406.6,0.29409]
[1735430208606,2.65507941,3406.7,3406.6,4.91350683]
[1735430209403,7.28438733,3406.7,3406.6,4.91350683]
[1735430212411,7.28438733,3406.7,3406.6,5.37360683]
[1735430213111,6.11338733,3406.7,3406.6,5.37360683]
[1735430213312,5.07620792,3406.7,3406.6,5.37360683]
[1735430213510,4.62930792,3406.7,3406.6,5.37360683]
[1735430213912,4.62930792,3406.7,3406.6,6.13289949]
[1735430215013,4.62930792,3406.7,3406.6,9.34069949]
[1735430216016,5.66648733,3406.7,3406.6,5.67279949]
[1735430216815,1.03717941,3406.7,3406.6,5.67279949]
[1735430218212,5.66648733,3406.7,3406.6,5.67279949]
[1735430219118,1.03717941,3406.7,3406.6,5.67279949]
[1735430219812,4.62930792,3406.8,3406.7,0.29408]
[1735430220309,7.79542859,3406.9,3406.8,0.29407]
[1735430221721,2.0316,3406.9,3406.8,0.29407]
[1735430224930,2.0316,3406.9,3406.8,0.73207]
[1735430226020,2.0316,3406.9,3406.8,0.29407]
[1735430231931,2.32566,3406.9,3406.8,0.29407]
[1735430232123,2.0316,3406.9,3406.8,0.29407]
[1735430236137,1.5997,3406.9,3406.8,0.29407]
[1735430237431,6.22989825,3406.9,3406.8,4.92462175]
[1735430239335,4.63019825,3406.9,3406.8,8.13242175]
[1735430239533,3.21019825,3406.9,3406.8,8.13242175]
[1735430239727,3.21019825,3406.9,3406.8,8.55582175]
[1735430240033,3.47227348,3407.0,3406.9,0.29406]
[1735430240230,3.47227348,3407.0,3406.9,1.77913941]
[1735430241228,2.31391208,3407.1,3406.9,6.86058518]
[1735430241434,2.31391208,3407.1,3407.0,1.33122941]
[1735430242838,2.31391208,3407.4,3407.3,0.29403]
[1735430243039,2.31391208,3407.4,3407.3,3.50183]
[1735430243440,2.31391208,3407.4,3407.3,3.93183]
[1735430244039,2.31391208,3407.4,3407.3,8.55391156]
[1735430245145,2.31391208,3407.4,3407.3,0.72403]
[1735430246249,3.64511149,3407.4,3407.3,0.29403]
[1735430247143,4.80347289,3407.4,3407.3,0.29403]
[1735430248143,3.76629348,3407.4,3407.3,0.29403]
[1735430249038,3.47227348,3407.4,3407.3,0.29403]
[1735430249941,3.47227348,3407.4,3407.3,3.50183]
[1735430250341,3.47227348,3407.4,3407.3,0.29403]
[1735430250662,3.47227348,3407.4,3407.3,0.73503]
[1735430250947,2.31042642,3407.5,3407.4,0.29402]
[1735430255843,3.34760583,3407.5,3407.4,0.29402]
[1735430256047,3.34760583,3407.5,3407.0,0.73513]
[1735430256048,0.29404,3407.3,3407.2,0.29403]
[1735430257751,0.29404,3407.3,3406.9,7.82988156]
[1735430257752,0.29405,3407.1,3407.0,0.29405]
[1735430257946,0.29405,3407.0,3406.9,4.91614156]
[1735430258250,1.92115,3407.0,3406.9,4.91614156]
[1735430258649,1.92115,3407.0,3406.9,0.29406]
[1735430259753,5.38656144,3407.0,3406.9,0.29406]
[1735430264660,1.92115,3407.0,3406.9,0.29406]
[1735430265846,0.29409,3406.8,3406.7,0.29407]
[1735430266153,1.33126941,3406.8,3406.7,0.29407]
[1735430266547,1.76966941,3406.8,3406.7,0.29407]
[1735430268756,4.08024398,3406.8,3406.7,0.29407]
[1735430269446,4.95615398,3406.8,3406.7,0.29407]
[1735430269656,5.25022398,3406.8,3406.7,0.29407]
[1735430270149,3.91897457,3406.8,3406.7,0.29407]
[1735430271157,4.21304457,3406.8,3406.7,0.29407]
[1735430271358,3.91897457,3406.8,3406.7,0.29407]
[1735430274562,3.48057457,3406.8,3406.7,0.29407]
[1735430275363,2.31057457,3406.8,3406.7,0.29407]
[1735430276761,3.47957457,3406.9,3406.8,0.29407]
[1735430279368,1.169,3406.9,3406.8,0.29407]
[1735430279959,2.76867457,3407.0,3406.9,0.29406]
[1735430280166,3.93767457,3407.0,3406.9,0.29406]
[1735430282467,4.23172457,3407.0,3406.9,0.29406]
[1735430284569,5.38707898,3407.0,3406.9,0.29406]
[1735430285072,5.09302898,3407.0,3406.9,0.29406]
[1735430285668,5.38707898,3407.0,3406.9,0.29406]
[1735430285963,4.63492898,3407.0,3406.9,0.29406]
[1735430286768,2.31051363,3407.0,3406.9,0.29406]
[1735430286973,2.31051363,3407.0,3406.9,1.33123941]
[1735430288172,2.31051363,3407.5,3406.9,6.43939449]
[1735430288370,2.31051363,3407.5,3407.4,0.29402]
[1735430289073,2.31051363,3407.5,3407.4,0.74012]
[1735430289468,3.47951363,3407.6,3407.4,0.4461]
[1735430289668,3.47951363,3407.6,3407.5,0.29401]
[1735430291171,2.31051363,3407.6,3407.5,0.29401]
[1735430295280,5.79671898,3407.7,3407.6,0.294]
[1735430295975,5.50272898,3407.7,3407.6,0.294]
[1735430297981,2.0368,3407.7,3407.6,0.294]
[1735430298382,2.33079,3407.7,3407.6,0.294]
[1735430299179,6.83389839,3407.7,3407.6,0.294]
[1735430300282,6.53990839,3407.7,3407.2,3.94287]
[1735430300486,0.29401,3407.6,3407.5,0.294]
[1735430302486,3.75993898,3407.6,3407.5,0.294]
[1735430303983,0.29401,3407.6,3407.5,0.294]
[1735430305586,3.75993898,3407.6,3407.5,0.294]
[1735430305789,3.46592898,3407.6,3407.2,3.2078]
[1735430305987,1.33120941,3407.4,3407.3,0.29402]
[1735430306486,3.64000731,3407.4,3407.3,0.29402]
[1735430308478,3.79617731,3407.4,3407.3,0.29402]
[1735430308788,2.7589979,3407.4,3407.3,0.29402]
[1735430310193,3.0530179,3407.4,3407.3,0.29402]
[1735430310691,2.7589979,3407.4,3407.3,0.29402]
[1735430313493,1.78139941,3407.4,3407.3,0.29402]
[1735430314896,5.24732839,3407.4,3407.3,0.29402]
[1735430315197,4.95330839,3407.4,3406.9,3.94294]
[1735430315392,0.29404,3407.2,3407.1,0.29403]
[1735430315793,0.74344,3407.2,3407.1,0.29403]
[1735430317092,0.29405,3407.1,3407.0,0.29404]
[1735430319097,3.75880036,3407.1,3407.0,0.29404]
[1735430321500,3.46475036,3407.1,3407.0,0.29404]
[1735430324310,3.75879036,3407.1,3407.0,0.29404]
[1735430326715,0.29407,3406.8,3406.7,4.62024161]
[1735430327013,2.50024941,3406.8,3406.7,4.62024161]
[1735430328413,0.29409,3406.5,3406.4,0.2941]
[1735430328612,1.33126941,3406.5,3406.4,0.2941]
[1735430329415,4.79413983,3406.5,3406.4,0.2941]
[1735430329618,0.29412,3406.3,3406.2,0.29411]
[1735430329808,1.33130941,3406.2,3406.1,0.29413]
[1735430330114,0.29413,3406.1,3406.0,3.2078]
[1735430330415,0.72933,3406.1,3406.0,3.2078]
[1735430331912,3.0339312,3406.1,3406.0,3.2078]
[1735430333815,0.29416,3405.8,3405.7,3.50196]
[1735430334017,1.46216,3405.8,3405.7,3.50196]
[1735430336816,1.46216,3405.8,3405.7,0.29416]
[1735430337121,0.29416,3405.7,3405.6,0.75497]
[1735430337314,0.29416,3405.7,3405.6,0.4608]